[Event "SixDays Budapest IM-A January 2024"]
[Site "Budapest"]
[Date "2024.01.30"]
[Round "6.2"]
[White "Hacker, Jonas"]
[Black "Lim, Zhuo Ren"]
[Result "1/2-1/2"]
[ECO "B31"]
[WhiteElo "2420"]
[BlackElo "2218"]
[Annotator "TA"]
[PlyCount "128"]
[EventDate "2024.01.26"]
[EventType "tourn"]
[EventCountry "HUN"]
[SourceTitle "playchess.com"]
[Source "ChessBase"]
[SourceQuality "1"]
[TimeControl "5400+30"]

{[%evp 17,128,0,0,8,18,20,16,23,16,16,14,14,12,0,0,0,0,0,0,-2,-6,-14,-24,-44,-40,-48,-33,-60,19,-15,-16,-7,-10,-28,0,-39,-37,-43,-37,-46,-37,-35,-26,-27,-19,-17,0,-12,-12,-46,-48,-36,-22,-71,-71,-71,-71,-71,-71,-71,-71,-71,-71,-71,-71,-71,-71,-71,0,-71,-71,-71,-65,-77,-77,-77,-65,-65,-65,-65,-65,-65,-65,-65,-65,-65,-34,-34,-34,-34,-34,-34,-34,-34,-34,-34,-34,-34,-34,-34,-34,-34,-34,-34,0,-34,0,-34,-34,-34,-34,-34,0]} 1. e4 {[%emt 0:00:22]} c5 {[%emt 0:08:05]} 2. Nf3 {[%emt 0:00:05]} Nc6 {[%emt 0:00:11]} 3. Bb5 {[%emt 0:00:09]} g6 {[%emt 0:00:11]} 4. O-O {[%emt 0:00:09]} Bg7 {[%emt 0:00:09]} 5. c3 {[%emt 0:01:26]} Nf6 {[%emt 0:00:22]} 6. Re1 {[%emt 0:00:31]} O-O {[%emt 0:00:18]} 7. d4 {[%emt 0:00:04]} d5 {[%emt 0:00:09]} 8. e5 {[%emt 0:00:12]} Ne4 {[%emt 0:00:12]} 9. Bxc6 {[%emt 0:00:20]} bxc6 {[%emt 0:00:06]} 10. Be3 {[%emt 0:00:33]} Rb8 {[%emt 0:01:02]} 11. Qc1 {[%emt 0:02:13]} cxd4 {[%emt 0:00:49]} 12. cxd4 {[%emt 0:00:17] The position is equal.} Bf5 {[%emt 0:00:56]} 13. Nc3 {[%emt 0:03:03]} f6 {[%emt 0:02:14]} 14. h3 {[%emt 0:14:47]} Qd7 {[%emt 0:01:58]} 15. exf6 {[%emt 0:15:07]} exf6 {[%emt 0:00:25]} 16. Nxe4 {[%emt 0:01:34]} dxe4 {[%emt 0:01:03]} 17. Nd2 {[%emt 0:00:54][%cal Bf3d2,Bd2b3,Bb3c5][%mdl 32]} g5 {[%emt 0:00:34]} 18. Nb3 {[%emt 0:05:32]} Bg6 {[%emt 0:04:50]} 19. Nc5 {[%emt 0:09:41]} Qd5 {[%emt 0:00:43]} 20. Nb3 {[%emt 0:02:55]} h6 {[%emt 0:00:47]} 21. h4 {[%emt 0:01:23]} Rf7 {[%emt 0:03:47]} 22. hxg5 {[%emt 0:02:14]} fxg5 {[%emt 0:06:02]} (22... hxg5 $15 23. Qc5 Qxc5 24. dxc5 Bf8) 23. Qc5 {[%emt 0:01:34]} Qxc5 {[%emt 0:03:58]} 24. Nxc5 {[%emt 0:06:30]} Rxb2 {[%emt 0:00:10]} 25. Reb1 {[%emt 0:00:37]} Rb6 {[%emt 0:00:58]} (25... Rc2 $5) 26. Rb3 {[%emt 0:03:31]} Re7 {[%emt 0:02:56]} 27. Rab1 {[%emt 0:00:59]} Rxb3 {[%emt 0:00:07]} 28. Rxb3 {[%emt 0:00:40]} Bf7 {[%emt 0:00:30]} 29. Rb8+ {[%emt 0:00:34]} Kh7 {[%emt 0:01:12]} 30. a4 {[%emt 0:00:18]} Bd5 {[%emt 0:00:29]} 31. a5 {[%emt 0:00:25]} Rf7 {[%emt 0:03:00]} 32. a6 {[%emt 0:02:37]} Bf8 {[%emt 0:00:29]} 33. Rb7 {[%emt 0:07:31]} Bxc5 $1 {[%emt 0:00:26]} 34. dxc5 $15 {[%emt 0:00:43][%mdl 4096] Endgame. KRB-KRB} Kg6 {[%emt 0:00:20]} 35. Bd4 {[%emt 0:03:15]} (35. Rb8 $11 {deserves consideration.}) 35... Bc4 $17 {[%emt 0:00:33]} 36. Rxf7 {[%emt 0:03:05]} Kxf7 {[%emt 0:00:07] KB-KB} 37. Be5 {[%emt 0:00:05]} Bxa6 {[%emt 0:00:06] [#] And now ...Be2 would win.} 38. Bb8 {[%emt 0:00:01]} Ke6 {[%emt 0:00:22]} 39. Bxa7 {[%emt 0:00:16]} Kd5 {[%emt 0:00:10]} 40. Bb6 {[%emt 0:01:33]} Be2 {[%emt 0:00:32]} 41. Kh2 {[%emt 0:01:00]} Kc4 {[%emt 0:01:52]} 42. Kg1 {[%emt 0:00:31]} Kd5 {[%emt 0:02:28]} 43. Kh2 {[%emt 0:00:07]} Kd4 {[%emt 0:00:05]} 44. Kg1 {[%emt 0:00:08]} h5 {[%emt 0:00:14]} 45. g3 {[%emt 0:01:09]} Bc4 {[%emt 0:03:04]} 46. Kg2 {[%emt 0:00:54]} Ke5 {[%emt 0:00:42]} 47. Bd8 {[%emt 0:02:21]} Kf5 {[%emt 0:00:09]} 48. Ba5 {[%emt 0:01:17]} Kg4 {[%emt 0:00:23]} 49. Bd2 {[%emt 0:00:26]} Be2 {[%emt 0:00:34]} 50. Be3 {[%emt 0:00:40]} h4 {[%emt 0:00:19]} 51. gxh4 {[%emt 0:01:57]} Kxh4 {[%emt 0:00:15]} 52. Kh2 {[%emt 0:01:06]} Kg4 {[%emt 0:00:16]} 53. Kg2 {[%emt 0:00:13]} Bc4 {[%emt 0:00:08]} 54. Kg1 {[%emt 0:00:14]} Bd3 {[%emt 0:01:35]} 55. Kg2 {[%emt 0:00:05]} Ba6 {[%emt 0:00:37]} 56. Kg1 {[%emt 0:00:05]} Bc4 {[%emt 0:00:07]} 57. Kg2 {[%emt 0:00:03]} Bd5 {[%emt 0:00:16]} 58. Kg1 {[%emt 0:00:36]} Kh4 {[%emt 0:01:58]} 59. Kf1 {[%emt 0:03:11]} Bc4+ {[%emt 0:00:25]} 60. Kg2 {[%emt 0:00:29]} Be2 {[%emt 0:00:25]} 61. Kh2 {[%emt 0:00:22]} Kg4 {[%emt 0:01:29]} 62. Kg2 {[%emt 0:00:12]} Kf5 {[%emt 0:00:13] Black is slightly better.} 63. Kg3 {[%emt 0:00:28]} Bf3 {[%emt 0:00:08]} 64. Bd2 {[%emt 0:00:29]} Ke5 {Weighted Error Value: White=0.05 (flawless) /Black=0.08 (flawless) .  Mistake:       	White=1     	Black=1      Inaccurate:     	White=4     	Black=3      OK:         	White=25    	Black=22     Best:        	White=3     	---        Strong:       	---       	Black=1} 1/2-1/2

[Event "SixDays Budapest IM-A January 2024"]
[Site "Budapest"]
[Date "2024.01.30"]
[Round "6.4"]
[White "Cieslak, Patryk"]
[Black "Vetokhina, Sofia"]
[Result "1-0"]
[ECO "E73"]
[WhiteElo "2284"]
[BlackElo "2020"]
[Annotator "TA"]
[PlyCount "71"]
[EventDate "2024.01.26"]
[EventType "tourn"]
[EventCountry "HUN"]
[SourceTitle "playchess.com"]
[Source "ChessBase"]
[SourceQuality "1"]
[TimeControl "5400+30"]

{[%evp 12,71,47,38,82,88,75,79,87,0,-9,0,2,0,48,27,28,15,22,26,31,29,50,-18,-11,-20,50,24,31,0,23,25,85,62,74,92,68,79,122,79,80,79,84,60,87,83,71,85,176,78,174,172,190,179,3620,3436,29995,29996,29996,29997,29997,29998]} 1. d4 {[%emt 0:00:07]} Nf6 {[%emt 0:00:10]} 2. c4 {[%emt 0:00:04]} g6 {[%emt 0:00:06]} 3. Nc3 {[%emt 0:00:05]} Bg7 {[%emt 0:00:08]} 4. e4 {[%emt 0:00:03]} d6 {[%emt 0:00:06]} 5. Be2 {[%emt 0:00:04]} O-O {[%emt 0:00:09]} 6. Be3 {[%emt 0:00:04]} c5 {[%emt 0:03:52]} 7. d5 {[%emt 0:00:25]} b5 {[%emt 0:06:00]} 8. cxb5 {[%emt 0:04:59]} (8. Nxb5 Nxe4 9. Rb1 Qa5+ 10. Kf1 Nd7 $17 (10... Qxa2 11. Bd3 $17)) 8... Qa5 {[%emt 0:01:47]} 9. Bd2 {[%emt 0:07:13]} a6 {[%emt 0:11:39] [#] White is better.} 10. b6 {[%emt 0:11:18]} Qxb6 $11 {[%emt 0:01:20][%cal Oe7e6]} 11. Nf3 {[%emt 0:09:07]} Nbd7 {[%emt 0:04:42][%cal Oe7e6]} 12. O-O {[%emt 0:02:06]} a5 {[%emt 0:03:42]} (12... Bb7 $11) 13. a4 {[%emt 0:08:27]} Ba6 {[%emt 0:02:30]} 14. Bxa6 {[%emt 0:00:16]} Qxa6 {[%emt 0:03:34]} 15. Qc2 {[%emt 0:02:37]} Ne8 {[%emt 0:03:05]} 16. Nb5 {[%emt 0:01:56][%cal Bc3b5,Bb5a3,Ba3c4][%mdl 32] Repels Nc7} Qb6 {[%emt 0:02:50]} 17. Ra2 {[%emt 0:02:58]} (17. Bc3 $14) 17... Nc7 {[%emt 0:11:47]} 18. Na3 {[%emt 0:00:16]} Ra6 {[%emt 0:05:43]} (18... f5 $1 $11) 19. Nc4 {[%emt 0:02:15]} Qa7 {[%emt 0:00:12]} 20. Bg5 {[%emt 0:00:52]} f6 {[%emt 0:01:40]} 21. Bd2 {[%emt 0:02:18]} Rb8 {[%emt 0:04:45]} (21... f5 $11) 22. Bc3 {[%emt 0:00:53]} Nb6 {[%emt 0:02:59]} 23. Nfd2 {[%emt 0:00:58][%cal Bf3d2,Bd2c4,Bc4e3,Be3g4,Bg4h6][%mdl 32] White is much more active.} Nxc4 {[%emt 0:01:27]} 24. Nxc4 {[%emt 0:00:05]} Na8 {[%emt 0:02:40]} 25. Qe2 {[%emt 0:02:09]} Nb6 {[%emt 0:01:42]} 26. Ne3 $36 {[%emt 0:00:24][%mdl 2048] White is really pushing.} Qb7 {[%emt 0:05:30]} 27. f4 {[%emt 0:00:46][%cal Bf2f4,Bf4f5,Bf5g6,Bg6g7][%mdl 32]} Raa8 {[%emt 0:00:14][%cal Oe7e6]} 28. f5 {[%emt 0:01:57]} Qa6 {[%emt 0:01:31]} 29. Qf3 {[%emt 0:02:28]} Nc4 {[%emt 0:02:58]} (29... g5 $16 {was necessary.}) 30. h4 {[%emt 0:03:17]} (30. fxg6 $18 {and White stays clearly on top.} hxg6 31. Nxc4 Qxc4 32. Raa1) 30... Bh6 {[%emt 0:05:47]} (30... Rb3 $16 {might work better.}) 31. Ng4 $18 {[%emt 0:01:34]} Bd2 {[%emt 0:04:56]} 32. fxg6 {[%emt 0:02:23]} Bxc3 {[%emt 0:00:44]} (32... hxg6 33. Bxf6 Rf8) 33. Nh6+ $1 {[%emt 0:03:04]} (33. bxc3 hxg6 34. Raf2 (34. h5 Kg7 $16) 34... Ne5 $16) 33... Kh8 {[%emt 0:04:57][%cal Bg8h8,Bh8g7,Bg7h6][%mdl 32]} 34. g7+ $1 {[%emt 0:00:21] White mates.} (34. bxc3 hxg6 35. h5 Ne5 $11) 34... Kxg7 {[%emt 0:00:12] [#]} 35. Qg4+ $1 {[%emt 0:00:18]} ({And not} 35. Nf5+ Kh8 36. Qxc3 (36. bxc3 Ne5 $11) 36... Ne5 $11) 35... Kxh6 {[%emt 0:00:18] [#]} 36. Rf5 $1 {[%emt 0:00:04] Weighted Error Value: White=0.18 (very precise) /Black=0.50.  Mistake:       	White=3     	Black=6      Inaccurate:     	White=3     	Black=3      OK:         	White=9     	Black=10     Best:        	White=1     	Black=1      Strong:       	White=1     	---} 1-0

[Event "SixDays Budapest IM-A January 2024"]
[Site "Budapest"]
[Date "2024.01.30"]
[Round "6.5"]
[White "Orso, Miklos"]
[Black "Balla, Tamas-Kristof"]
[Result "1/2-1/2"]
[ECO "B40"]
[WhiteElo "2172"]
[BlackElo "2283"]
[Annotator "TA"]
[PlyCount "24"]
[EventDate "2024.01.26"]
[EventType "tourn"]
[EventCountry "HUN"]
[SourceTitle "playchess.com"]
[Source "ChessBase"]
[SourceQuality "1"]
[TimeControl "5400+30"]

{[%evp 19,24,-12,8,7,61,45,62]} 1. e4 {[%emt 0:00:28]} c5 {[%emt 0:00:58]} 2. Nf3 {[%emt 0:00:09]} e6 {[%emt 0:00:13]} 3. c3 {[%emt 0:00:11][%cal Bc2c3,Bc3d4,Bd4e5][%mdl 32]} Nf6 {[%emt 0:00:07]} 4. e5 {[%emt 0:00:08]} Nd5 {[%emt 0:00:05]} 5. d4 {[%emt 0:00:29]} cxd4 {[%emt 0:00:05]} 6. cxd4 {[%emt 0:00:12]} d6 {[%emt 0:00:08]} 7. a3 {[%emt 0:00:32]} Bd7 {[%emt 0:02:46]} 8. Bd3 {[%emt 0:00:52]} Bc6 {[%emt 0:00:33]} 9. O-O {[%emt 0:01:14]} Nd7 {[%emt 0:00:41]} 10. Re1 {[%emt 0:08:22]} dxe5 {[%emt 0:01:58]} 11. dxe5 {[%emt 0:01:03]} Nc5 {[%emt 0:02:43]} (11... Be7 $11) 12. Bc2 $14 {[%emt 0:01:21]} a5 {[%emt 0:03:07] Mistake:       	---       	Black=1      OK:         	White=1     	Black=1} 1/2-1/2

[Event "SixDays Budapest IM-A January 2024"]
[Site "Budapest"]
[Date "2024.01.31"]
[Round "7.1"]
[White "Balla, Tamas-Kristof"]
[Black "Kuru, Atilla"]
[Result "1/2-1/2"]
[ECO "A06"]
[WhiteElo "2283"]
[BlackElo "2220"]
[Annotator "RC"]
[PlyCount "208"]
[EventDate "2024.01.26"]
[EventType "tourn"]
[EventCountry "HUN"]
[SourceTitle "playchess.com"]
[Source "ChessBase"]
[SourceQuality "1"]
[TimeControl "5400+30"]

1. Nf3 {[%emt 0:03:09]} d5 {[%emt 0:05:44]} 2. b3 {[%emt 0:00:09]} Bf5 {[%emt 0:00:04]} 3. Bb2 {[%emt 0:00:05]} e6 {[%emt 0:00:03]} 4. g3 {[%emt 0:00:39]} Nf6 {[%emt 0:00:33]} 5. Bg2 {[%emt 0:00:13]} h6 {[%emt 0:00:03]} 6. O-O {[%emt 0:01:52]} Nbd7 {[%emt 0:01:16]} 7. d3 {[%emt 0:01:25]} Bd6 {[%emt 0:02:50]} 8. Nbd2 {[%emt 0:00:25]} O-O {[%emt 0:00:28]} 9. Re1 {[%emt 0:00:40]} Bh7 {[%emt 0:02:23]} 10. e4 {[%emt 0:02:12]} dxe4 {[%emt 0:00:39]} 11. dxe4 {[%emt 0:01:55]} e5 {[%emt 0:00:08]} 12. Nc4 {[%emt 0:04:44]} Qe7 {[%emt 0:06:56]} 13. Nxd6 {[%emt 0:19:31]} cxd6 {[%emt 0:00:31]} 14. Nh4 {[%emt 0:00:52]} Rad8 {[%emt 0:06:28]} 15. Nf5 {[%emt 0:05:05]} Qe6 {[%emt 0:01:48]} 16. g4 {[%emt 0:03:08]} Nc5 {[%emt 0:00:34]} 17. c4 {[%emt 0:02:17]} h5 {[%emt 0:04:27]} 18. h3 {[%emt 0:04:43]} hxg4 {[%emt 0:01:09]} 19. hxg4 {[%emt 0:00:07]} g6 {[%emt 0:00:04]} 20. Nh6+ {[%emt 0:09:51]} Kg7 {[%emt 0:00:07]} 21. Bc1 {[%emt 0:01:37]} Ng8 {[%emt 0:12:59]} 22. Nxg8 {[%emt 0:02:31]} Rxg8 {[%emt 0:00:28]} 23. Be3 {[%emt 0:05:36]} Kh8 {[%emt 0:00:15]} 24. Qd5 {[%emt 0:05:52]} Qxd5 {[%emt 0:00:47]} 25. exd5 {[%emt 0:01:43]} Nd7 {[%emt 0:00:26]} 26. g5 {[%emt 0:01:13]} Kg7 {[%emt 0:01:58]} 27. Bh3 {[%emt 0:01:46]} b6 {[%emt 0:02:13]} 28. f4 {[%emt 0:02:04]} Rge8 {[%emt 0:00:54]} 29. Bxd7 {[%emt 0:03:27]} Rxd7 {[%emt 0:00:06]} 30. fxe5 {[%emt 0:00:04]} dxe5 {[%emt 0:00:05]} 31. a4 {[%emt 0:00:13]} f6 {[%emt 0:03:39]} 32. gxf6+ {[%emt 0:01:02]} Kxf6 {[%emt 0:00:06]} 33. Rf1+ {[%emt 0:04:20]} Kg7 {[%emt 0:00:39]} 34. Bg5 {[%emt 0:00:31]} e4 {[%emt 0:00:34]} 35. Rae1 {[%emt 0:00:05]} Bg8 {[%emt 0:01:30]} 36. Bf6+ {[%emt 0:02:30]} Kf8 {[%emt 0:00:01]} 37. Kf2 {[%emt 0:01:34]} Bxd5 {[%emt 0:00:31]} 38. cxd5 {[%emt 0:00:08]} Rxd5 {[%emt 0:00:03]} 39. Re3 {[%emt 0:05:11]} Kf7 {[%emt 0:00:30]} 40. Bc3 {[%emt 0:00:35]} Rf5+ {[%emt 0:01:36]} 41. Ke2 {[%emt 0:00:02]} Rxf1 {[%emt 0:00:10]} 42. Kxf1 {[%emt 0:00:02]} g5 {[%emt 0:00:08]} 43. Rg3 {[%emt 0:01:06]} Kg6 {[%emt 0:00:33]} 44. Bd2 {[%emt 0:00:17]} Re5 {[%emt 0:00:05]} 45. Ke2 {[%emt 0:00:08]} Rd5 {[%emt 0:00:29]} 46. Rg4 {[%emt 0:01:32]} Re5 {[%emt 0:00:26]} 47. Ke3 {[%emt 0:01:25]} Kf5 {[%emt 0:00:10]} 48. Rg1 {[%emt 0:00:03]} Rd5 {[%emt 0:00:19]} 49. Ke2 {[%emt 0:00:35]} g4 {[%emt 0:03:49]} 50. Rf1+ {[%emt 0:00:17]} Ke5 {[%emt 0:00:02]} 51. Bc3+ {[%emt 0:01:48]} Kd6 {[%emt 0:00:01]} 52. Rf6+ {[%emt 0:00:58]} Kc5 {[%emt 0:00:40]} 53. Be1 {[%emt 0:02:01]} Rd3 {[%emt 0:00:17]} 54. b4+ {[%emt 0:00:53]} Kd5 {[%emt 0:00:39]} 55. Rf7 {[%emt 0:00:12]} a5 {[%emt 0:00:02]} 56. bxa5 {[%emt 0:01:05]} bxa5 {[%emt 0:00:08]} 57. Rf5+ {[%emt 0:00:11]} Kd4 {[%emt 0:01:57]} 58. Bxa5 {[%emt 0:00:44]} Rb3 {[%emt 0:00:58]} 59. Be1 {[%emt 0:00:34]} g3 {[%emt 0:00:58]} 60. Rg5 {[%emt 0:00:26]} Re3+ {[%emt 0:01:10]} 61. Kd1 {[%emt 0:00:22]} Ra3 {[%emt 0:00:13]} 62. a5 {[%emt 0:00:48]} Kd3 {[%emt 0:00:53]} 63. Bd2 {[%emt 0:00:47]} g2 {[%emt 0:01:32]} 64. Rxg2 {[%emt 0:00:33]} Ra1+ {[%emt 0:00:12]} 65. Bc1 {[%emt 0:00:05]} Rxa5 {[%emt 0:00:13]} 66. Rd2+ {[%emt 0:00:07]} Kc4 {[%emt 0:00:07]} 67. Ke2 {[%emt 0:00:07]} Ra1 {[%emt 0:00:18]} 68. Rc2+ {[%emt 0:00:42]} Kd5 {[%emt 0:00:25]} 69. Ke3 {[%emt 0:00:16]} Rb1 {[%emt 0:00:17]} 70. Rd2+ {[%emt 0:00:10]} Ke6 {[%emt 0:00:10]} 71. Rc2 {[%emt 0:00:14]} Kd5 {[%emt 0:00:11]} 72. Bd2 {[%emt 0:00:18]} Rb3+ {[%emt 0:01:06]} 73. Ke2 {[%emt 0:00:28]} Rh3 {[%emt 0:00:56]} 74. Be3 {[%emt 0:00:05]} Rh2+ {[%emt 0:00:16]} 75. Bf2 {[%emt 0:00:04]} Rh3 {[%emt 0:00:06]} 76. Rc5+ {[%emt 0:00:08]} Ke6 {[%emt 0:00:06]} 77. Bd4 {[%emt 0:00:12]} Kd6 {[%emt 0:00:32]} 78. Ra5 {[%emt 0:00:20]} Kc6 {[%emt 0:00:26]} 79. Re5 {[%emt 0:00:17]} Rh4 {[%emt 0:00:03]} 80. Ke3 {[%emt 0:00:17]} Kd6 {[%emt 0:00:13]} 81. Rg5 {[%emt 0:00:19]} Ke6 {[%emt 0:00:13]} 82. Be5 {[%emt 0:01:10]} Rh1 {[%emt 0:00:32]} 83. Bg3 {[%emt 0:00:05]} Kf6 {[%emt 0:00:09]} 84. Rb5 {[%emt 0:00:19]} Rh3 {[%emt 0:00:36]} 85. Kf4 {[%emt 0:00:06]} e3 {[%emt 0:00:42]} 86. Rb6+ {[%emt 0:00:44]} Kf7 {[%emt 0:00:10]} 87. Rb3 {[%emt 0:00:14]} e2 {[%emt 0:00:16]} 88. Re3 {[%emt 0:00:06]} Rh6 {[%emt 0:00:28]} 89. Rxe2 {[%emt 0:01:54]} Re6 {[%emt 0:00:33]} 90. Rd2 {[%emt 0:00:10]} Rf6+ {[%emt 0:00:14]} 91. Ke4 {[%emt 0:00:06]} Ke6 {[%emt 0:00:48]} 92. Be5 {[%emt 0:00:08]} Rg6 {[%emt 0:00:30]} 93. Rc2 {[%emt 0:00:17]} Rg4+ {[%emt 0:00:15]} 94. Bf4 {[%emt 0:00:05]} Rg6 {[%emt 0:00:05]} 95. Rc7 {[%emt 0:00:30]} Rf6 {[%emt 0:00:23]} 96. Be5 {[%emt 0:00:34]} Rg6 {[%emt 0:00:05]} 97. Ra7 {[%emt 0:00:25]} Rg4+ {[%emt 0:00:05]} 98. Bf4 {[%emt 0:00:07]} Rg6 {[%emt 0:00:04]} 99. Rb7 {[%emt 0:03:20]} Rf6 {[%emt 0:00:07]} 100. Bg5 {[%emt 0:00:04]} Rg6 {[%emt 0:00:07]} 101. Rb5 {[%emt 0:00:32]} Kd7 {[%emt 0:00:32]} 102. Rb7+ {[%emt 0:00:31]} Kc6 {[%emt 0:00:10]} 103. Kf5 {[%emt 0:00:30]} Rxg5+ {[%emt 0:00:06]} 104. Kxg5 {[%emt 0:00:02]} Kxb7 {[%emt 0:00:05]} 1/2-1/2

[Event "SixDays Budapest IM-A January 2024"]
[Site "Budapest"]
[Date "2024.01.31"]
[Round "7.2"]
[White "Vetokhina, Sofia"]
[Black "Orso, Miklos"]
[Result "1-0"]
[ECO "E38"]
[WhiteElo "2020"]
[BlackElo "2172"]
[Annotator "TA"]
[PlyCount "89"]
[EventDate "2024.01.26"]
[EventType "tourn"]
[EventCountry "HUN"]
[SourceTitle "playchess.com"]
[Source "ChessBase"]
[SourceQuality "1"]
[TimeControl "5400+30"]

{[%evp 23,89,25,20,-41,-8,-19,0,-114,-43,-56,-47,-97,0,-61,-51,-62,18,15,31,0,51,-91,-54,-59,354,388,638,670,673,687,917,913,880,419,465,327,422,403,622,413,612,589,519,258,240,241,212,112,114,124,390,107,106,45,912,74,1218,80,1043,1038,2236,1515,29966,665,663,665,654,650]} 1. d4 {[%emt 0:00:03]} Nf6 {[%emt 0:01:13]} 2. c4 {[%emt 0:00:06]} e6 {[%emt 0:01:40]} 3. Nc3 {[%emt 0:00:08]} Bb4 {[%emt 0:00:19]} 4. Qc2 {[%emt 0:00:06]} c5 {[%emt 0:00:55]} 5. dxc5 {[%emt 0:00:08]} Na6 {[%emt 0:01:20]} 6. a3 {[%emt 0:00:08]} Bxc3+ {[%emt 0:00:11]} 7. Qxc3 {[%emt 0:00:06]} Nxc5 {[%emt 0:00:14]} 8. f3 {[%emt 0:00:07]} d5 {[%emt 0:05:53]} 9. cxd5 {[%emt 0:02:36]} b6 {[%emt 0:00:07]} 10. b4 {[%emt 0:02:57]} Na4 {[%emt 0:00:35]} 11. Qb3 {[%emt 0:01:08]} b5 {[%emt 0:00:23]} 12. e4 {[%emt 0:04:13]} a6 {[%emt 0:00:32]} 13. Bf4 {[%emt 0:19:55]} (13. Be3 $11) 13... exd5 {[%emt 0:04:23]} (13... Nxe4 $5 14. Be5 (14. fxe4 Qf6 $17) 14... Nf6 $15 (14... Qxd5 $2 15. Qxd5 exd5 16. fxe4 $18)) 14. e5 {[%emt 0:02:50]} O-O {[%emt 0:09:07]} 15. Bd3 {[%emt 0:09:58]} (15. Ne2 $11 Nh5 16. Be3) 15... Re8 {[%emt 0:11:10]} ({Better is} 15... Nh5 $17 16. Bg3 g6) 16. Ne2 $15 {[%emt 0:02:44]} Nh5 {[%emt 0:00:42]} 17. Bg3 {[%emt 0:04:18]} (17. O-O $15) 17... Bb7 {[%emt 0:09:37]} (17... Nxg3 $17 18. hxg3 g6 (18... Rxe5 19. Bxh7+ Kf8 20. Rc1 $11)) 18. f4 {[%emt 0:04:39]} (18. Bf2 $11) 18... d4 $15 {[%emt 0:03:59]} 19. O-O {[%emt 0:01:38]} Bd5 {[%emt 0:03:24]} (19... Rc8 $1 $15) 20. Qc2 $11 {[%emt 0:00:32]} Rc8 {[%emt 0:11:59]} 21. Bxh7+ {[%emt 0:07:19]} (21. Qd2 {simplifies} Bb7 22. Rf2 Kh8 23. Bf5) 21... Kf8 {[%emt 0:00:09]} (21... Kh8 $11 22. Qb1 Nxg3 23. hxg3 Qb6) 22. Qf5 {[%emt 0:02:43]} (22. Qd2 $14) 22... Nxg3 $17 {[%emt 0:00:20]} 23. Nxg3 {[%emt 0:06:30]} Be6 $2 {[%emt 0:02:20][%mdl 8192]} (23... Qh4 $1 $15 {stays ahead.}) 24. Qh5 $18 {[%emt 0:01:02]} d3 $2 {[%emt 0:04:38]} (24... Bc4 25. Be4 g6 26. Qh6+ Ke7) 25. f5 $18 {[%emt 0:01:17]} Qd4+ {[%emt 0:01:38]} 26. Kh1 {[%emt 0:01:01]} Bb3 {[%emt 0:03:51]} 27. f6 {[%emt 0:06:35]} Qxe5 {[%emt 0:02:28]} 28. fxg7+ {[%emt 0:00:08]} (28. Bxd3 Qxh5 29. fxg7+ Kxg7 30. Nxh5+ Kf8 $16) (28. Qxe5 Rxe5 29. fxg7+ (29. Bxd3 g6 $11) 29... Kxg7 30. Bxd3 Rc3 $16) (28. Qg4 $142 {[%csl Gf6][%cal Rg4g7]} g6 29. Qh4) 28... Qxg7 $18 {[%emt 0:00:29]} 29. Bxd3 {[%emt 0:02:19]} Rc6 {[%emt 0:07:03]} 30. Nf5 {[%emt 0:02:16]} Qg6 {[%emt 0:03:44]} (30... Qf6 $142 31. Qh7 Ree6) 31. Qh8+ $18 {[%emt 0:04:00]} Qg8 {[%emt 0:00:04]} 32. Qd4 {[%emt 0:00:31]} Qg5 {[%emt 0:01:25]} 33. h4 {[%emt 0:03:02]} (33. Rab1 $142) 33... Qf6 $18 {[%emt 0:00:48] [#]} 34. Qg4 $1 {[%emt 0:02:07]} Be6 {[%emt 0:00:36]} 35. Qh5 {[%emt 0:00:59]} (35. Rae1 $18) 35... Bxf5 $16 {[%emt 0:00:40]} 36. Bxf5 {[%emt 0:00:48]} Rc4 $2 {[%emt 0:00:45][%mdl 8192]} (36... Qh6 $16 {was necessary.} 37. Bg4 Qxh5 38. Bxh5 Re7) 37. Bg4 $2 {[%emt 0:01:12]} (37. Be4 $18 {is more deadly.} Re5 38. Qh7 (38. Rxf6 Rxh5 39. Bf3 Rcxh4+ 40. Kg1 Rh1+ 41. Kf2 Rh6 $11) 38... Rexe4 (38... Qg7 $2 39. Rxf7+ Qxf7 40. Qh8+ Ke7 41. Qxe5+ Qe6 42. Qg7+ Qf7 43. Qxf7+ Kxf7 44. Bd5+ Kg7 45. Bxc4 $18) 39. Rxf6 Rxh4+ 40. Qxh4 Rxh4+ 41. Kg1) 37... Qg7 $16 {[%emt 0:00:17]} 38. Bh3 {[%emt 0:00:29]} (38. Be2 $16 Rc7 (38... Re5 $2 39. Rxf7+ Qxf7 40. Qh8+ Ke7 41. Qxe5+ Qe6 42. Qg5+ Qf6 43. Bxc4 $18) 39. Rac1) 38... Ree4 $2 {[%emt 0:02:43][%mdl 8192]} (38... Nc3 $14) 39. Qd5 $2 {[%emt 0:01:20]} (39. Rad1 $18 {[%cal Of1f7] Threatening mate with Rxf7+!} Rc7 40. Rd8+ Re8 41. Rxe8+ Kxe8 42. Qd5) 39... Qg6 $2 {[%emt 0:03:11][%mdl 8192]} (39... Nc3 $16 40. Qd6+ Re7) 40. Qd8+ $2 {[%emt 0:00:45]} (40. h5 $18 {is the precise move to win.} Rcd4 41. Qxd4 (41. hxg6 Rxd5 42. Rxf7+ Kg8 $18) (41. Qa8+ Re8 $18) 41... Qxg2+ 42. Kxg2 Rxd4 43. Rac1) 40... Kg7 $2 {[%emt 0:00:10][%mdl 8192]} (40... Re8 $16 41. Qf6 Qxf6 42. Rxf6 Rxh4) 41. h5 $18 {[%emt 0:00:45]} Qh6 {[%emt 0:02:48]} 42. Rf3 {[%emt 0:00:26]} Re3 {[%emt 0:00:40]} 43. Raf1 {[%emt 0:00:52]} (43. Rxf7+ $142 Kxf7 44. Rf1+ Rf4 45. Qc7+ Kg8 46. Rxf4 (46. Qxf4 Qxf4 47. Rxf4 Nc3 $18) 46... Re1+ 47. Kh2 Qxh5 48. Qd8+ Kh7 49. Qd7+ (49. Rh4 Re5 $18) 49... Kg8 50. Qd8+ Kh7 51. Qf8 (51. Rh4 Re5 52. Rxh5+ Rxh5 53. g4 Rxh3+ 54. Kxh3 Nc3 55. Qd3+ Kg8 56. Qxc3 Kf7)) 43... Rxf3 $18 {[%emt 0:00:09]} 44. Rxf3 {[%emt 0:00:00]} ({Weaker is} 44. gxf3 Rc1 $16) 44... Rc3 {[%emt 0:02:46]} 45. Qd4+ {[%emt 0:00:38]} 1-0